bitfinex/quotes_SOLUSD_20251202
["timestamp","ask_amount","ask_price","bid_price","bid_amount"]
[1764697606401,7.15614713,139.74,139.7,9.47994492]
[1764697606600,28.16370794,139.75,139.7,16.63803679]
[1764697606913,15.13584491,139.75,139.71,0.67]
[1764697607115,27.49370794,139.75,139.71,0.67]
[1764697607520,13.02786303,139.74,139.7,8.80994492]
[1764697608028,13.02786303,139.74,139.7,9.47994492]
[1764697608926,7.15665927,139.73,139.7,9.47994492]
[1764697609632,7.15665927,139.73,139.7,8.80994492]
[1764697609930,19.5145223,139.73,139.68,24.13788895]
[1764697610110,20.33786303,139.72,139.68,16.308864]
[1764697610308,20.33786303,139.72,139.68,16.978864]
[1764697611010,7.15768377,139.71,139.68,16.978864]
[1764697611338,7.15768377,139.71,139.69,0.67]
[1764697612220,7.15768377,139.71,139.68,16.308864]
[1764697612424,7.15768377,139.71,139.68,16.978864]
[1764697612800,20.1855468,139.71,139.68,16.308864]
[1764697613001,7.15922107,139.68,139.66,0.1]
[1764697613227,19.5170841,139.68,139.66,0.1]
[1764697613923,7.98,139.69,139.66,0.77]
[1764697614118,15.1387482,139.69,139.66,0.77]
[1764697615636,27.49661123,139.69,139.66,0.77]
[1764697615805,12.35786303,139.68,139.66,0.1]
[1764697616009,13.02786303,139.68,139.66,0.1]
[1764697616221,33.03551962,139.69,139.66,0.1]
[1764697616411,13.02786303,139.67,139.66,0.1]
[1764697616923,12.35786303,139.67,139.66,0.1]
[1764697617226,26.54677142,139.69,139.66,0.1]
[1764697617404,12.35786303,139.67,139.66,0.1]
[1764697617804,13.02786303,139.67,139.66,0.1]
[1764697619232,19.51759668,139.67,139.66,0.1]
[1764697619524,7.15973365,139.67,139.66,0.1]
[1764697619713,19.51759668,139.67,139.66,0.1]
[1764697619903,7.15943229,139.68,139.66,0.77]
[1764697620103,20.33786303,139.71,139.66,0.77]
[1764697620331,7.15838065,139.7,139.66,0.77]
[1764697620516,14.43021125,139.7,139.66,0.77]
[1764697620713,15.13788593,139.71,139.67,8.80994492]
[1764697621135,15.13788593,139.71,139.68,0.67]
[1764697621511,7.98,139.71,139.68,7.82914755]
[1764697621727,7.2718306,139.75,139.69,16.08177552]
[1764697621908,15.2518306,139.74,139.69,0.67]
[1764697622114,7.2718306,139.72,139.69,16.308864]
[1764697622315,0.67,139.73,139.69,16.308864]
[1764697622540,7.2718306,139.72,139.69,16.308864]
[1764697623429,14.42929246,139.72,139.69,16.308864]
[1764697623736,14.42869307,139.73,139.69,24.13749388]
[1764697623915,25.87095279,139.74,139.71,8.80994492]
[1764697623916,7.98,139.74,139.71,8.80994492]
[1764697624320,3.73692625,139.8,139.74,16.308864]
[1764697624526,7.2718306,139.79,139.74,16.308864]
[1764697624732,7.2718306,139.78,139.74,16.308864]
[1764697624941,7.9418306,139.78,139.74,16.308864]
[1764697625439,7.2718306,139.78,139.74,24.13500155]
[1764697625740,7.9418306,139.78,139.74,16.308864]
[1764697625940,7.2718306,139.77,139.74,16.308864]
[1764697626117,7.2718306,139.77,139.74,16.978864]
[1764697626313,25.03755633,139.79,139.74,16.978864]
[1764697626527,7.2718306,139.77,139.74,16.978864]
[1764697626734,7.2718306,139.77,139.71,7.15737676]
[1764697626938,0.67,139.76,139.69,0.67]
[1764697627140,7.2718306,139.74,139.69,7.9418306]
[1764697627324,15.2518306,139.74,139.69,7.9418306]
[1764697627524,23.07809265,139.74,139.7,16.978864]
[1764697627822,23.07809265,139.74,139.71,8.80994492]
[1764697627823,7.98,139.74,139.71,8.80994492]
[1764697628019,17.88583815,139.78,139.72,7.2718306]
[1764697628339,7.98,139.77,139.73,16.08177552]
[1764697628637,7.2718306,139.75,139.72,16.308864]
[1764697628814,8.65,139.77,139.7,16.978864]
[1764697628815,7.2718306,139.74,139.7,16.978864]
[1764697629015,7.2718306,139.73,139.69,8.80994492]
[1764697629548,7.2718306,139.73,139.69,16.63865256]
[1764697629728,7.15669538,139.73,139.7,0.67]
[1764697630128,7.98,139.74,139.7,0.67]
[1764697631155,7.98,139.74,139.71,8.80994492]
[1764697631647,7.98,139.74,139.71,9.47994492]
[1764697631847,22.40748813,139.75,139.72,0.69]
[1764697633057,7.9418306,139.74,139.7,0.69]
[1764697633212,15.13565753,139.75,139.71,8.80994492]
[1764697633418,7.98,139.75,139.71,16.08177552]
[1764697633617,7.98,139.75,139.72,0.69]
[1764697633952,7.98,139.75,139.72,7.84715224]
[1764697634254,7.98,139.75,139.72,0.69]
[1764697634420,7.98,139.75,139.73,0.69]
[1764697636534,7.98,139.75,139.73,7.84665452]
[1764697636842,7.15524261,139.76,139.73,0.69]
[1764697637048,15.134818,139.77,139.73,16.65651992]
[1764697638147,15.134818,139.77,139.73,23.92835052]
[1764697639243,7.154818,139.77,139.73,23.23835052]
[1764697639453,15.13358752,139.79,139.74,16.77177552]
[1764697639659,15.13358752,139.79,139.74,9.49994492]
[1764697639836,23.07541812,139.79,139.75,0.69]
[1764697640157,7.98,139.79,139.76,16.08177552]
[1764697640346,7.15330568,139.8,139.76,16.08177552]
[1764697640549,7.15330568,139.8,139.77,0.69]
[1764697641045,22.60466568,139.81,139.77,0.69]
[1764697641224,40.48607616,139.81,139.77,0.69]
[1764697641429,7.2718306,139.79,139.74,0.69]
[1764697641624,7.2718306,139.78,139.74,16.998864]
[1764697641859,0.67,139.8,139.74,31.42642191]
[1764697642146,7.2718306,139.79,139.74,31.42642191]
[1764697642525,7.9418306,139.79,139.74,31.42642191]
[1764697642852,15.9218306,139.78,139.74,16.998864]
[1764697643059,7.2718306,139.77,139.72,31.42763664]
[1764697643263,7.2718306,139.77,139.72,30.73763664]
[1764697643430,15.09695366,139.76,139.71,23.23934388]
[1764697643755,14.42695366,139.76,139.72,0.69]
[1764697644854,7.2718306,139.76,139.72,0.69]
[1764697645421,7.15563506,139.75,139.72,0.69]
[1764697646851,7.15563506,139.75,139.72,7.8471663]
[1764697647255,7.82468162,139.77,139.73,0.69]
[1764697647432,15.09651222,139.77,139.73,0.69]
[1764697648559,7.82468162,139.77,139.73,0.69]
[1764697648731,15.09651222,139.77,139.73,0.69]
[1764697648933,7.15468162,139.77,139.74,7.2718306]
[1764697649137,7.98,139.78,139.76,7.2718306]
[1764697649331,0.2,139.81,139.77,7.2718306]
[1764697649332,15.3328361,139.81,139.77,7.2718306]
[1764697649653,15.3328361,139.81,139.77,16.08177552]
[1764697649851,23.2746667,139.81,139.77,8.80994492]
[1764697650040,16.0028361,139.81,139.77,9.49994492]
[1764697650429,15.3328361,139.81,139.77,16.08177552]
[1764697650630,15.3328361,139.81,139.78,0.69]
[1764697651051,15.3328361,139.81,139.78,7.9618306]
[1764697651350,0.2,139.81,139.8,7.2718306]
[1764697651655,0.2,139.81,139.79,8.80994492]
[1764697651843,8.02273736,139.81,139.77,23.5806946]
[1764697652045,8.18,139.81,139.78,0.69]
[1764697652358,8.18,139.81,139.78,7.9618306]
[1764697652556,0.2,139.81,139.79,15.96342456]
[1764697652763,0.2,139.81,139.79,23.92525516]
[1764697653060,0.2,139.81,139.8,16.77177552]
[1764697654154,0.2,139.81,139.8,33.08063952]
[1764697654354,0.2,139.81,139.8,25.11880892]
[1764697654550,0.2,139.81,139.8,16.308864]
[1764697657365,0.2,139.81,139.8,17.008864]
[1764697658245,0.2,139.81,139.8,32.97188474]
[1764697658664,0.2,139.81,139.8,40.24371534]
[1764697660151,0.2,139.81,139.8,25.11880892]
[1764697660354,0.2,139.81,139.8,40.24371534]
[1764697663472,0.2,139.81,139.8,32.97188474]
[1764697663664,0.2,139.81,139.8,40.24371534]
[1764697666454,0.9,139.81,139.8,16.308864]
[1764697666652,0.2,139.81,139.8,16.308864]
[1764697667680,0.2,139.81,139.8,25.79880892]
[1764697668067,0.2,139.81,139.8,40.22371534]
[1764697668377,0.2,139.81,139.8,28.8950148]
[1764697669471,0.2,139.81,139.8,25.79880892]
[1764697669863,0.2,139.81,139.8,32.95188474]
[1764697671472,0.2,139.81,139.8,25.11880892]
[1764697671850,0.2,139.81,139.78,3.77620588]
[1764697672077,7.35256419,139.81,139.78,25.79880892]
[1764697672573,7.35256419,139.81,139.78,32.95273387]
[1764697673153,0.2,139.81,139.79,8.80994492]
[1764697673367,0.2,139.81,139.8,3.09620588]
[1764697673570,0.2,139.81,139.8,3.77620588]
[1764697673972,0.2,139.81,139.8,0.68]
[1764697676185,0.2,139.81,139.8,7.83307582]
[1764697676766,0.2,139.81,139.8,10.9292817]
[1764697677380,0.2,139.81,139.8,36.04809062]
[1764697678379,0.2,139.81,139.8,32.95188474]
[1764697678568,0.2,139.81,139.8,25.11880892]
[1764697679777,0.2,139.81,139.8,16.308864]
[1764697679980,0.9,139.81,139.78,15.96389672]
[1764697680200,8.05256419,139.81,139.78,8.80994492]
[1764697680486,0.7,139.8,139.76,7.15495405]
[1764697680657,5.54041824,139.8,139.76,7.15495405]
[1764697680852,0.7,139.8,139.75,8.80994492]
[1764697681080,0.7,139.8,139.72,21.67129401]
[1764697681081,4.84041824,139.77,139.72,8.64]
[1764697681285,4.84041824,139.77,139.72,0.68]
[1764697681471,5.54041824,139.77,139.73,0.68]
[1764697681889,5.54041824,139.76,139.72,8.80994492]
[1764697682054,7.96,139.76,139.73,0.68]
[1764697682377,7.96,139.76,139.74,8.80994492]
[1764697682585,7.96,139.76,139.75,21.17577884]
[1764697682758,7.15374953,139.79,139.75,21.85577884]
[1764697682953,7.96,139.8,139.76,9.48994492]
[1764697683162,7.96,139.8,139.76,21.85577884]
[1764697683364,7.96,139.8,139.72,7.96]
[1764697683365,0.7,139.79,139.75,28.67469792]
[1764697683785,27.47892841,139.8,139.75,29.35469792]
[1764697683984,7.96,139.8,139.77,12.36583392]
[1764697684284,0.2,139.81,139.78,12.36583392]
[1764697684676,0.2,139.81,139.8,21.17577884]
[1764697685082,0.2,139.81,139.8,21.85577884]
[1764697685955,0.2,139.81,139.8,29.00885466]
[1764697687062,0.2,139.81,139.8,21.85577884]
[1764697687284,0.2,139.81,139.76,17.88705619]
[1764697687595,12.36583392,139.8,139.76,25.11880892]
[1764697688084,0.7,139.8,139.76,37.48464284]
[1764697688264,0.7,139.8,139.76,38.16464284]
[1764697689088,7.85331606,139.8,139.76,45.31963795]
[1764697689391,7.85331606,139.8,139.76,25.79880892]
[1764697689576,7.85331606,139.8,139.76,38.16464284]
[1764697689782,7.85331606,139.8,139.76,45.31963989]
[1764697690074,20.21914998,139.8,139.76,25.11880892]
[1764697690392,37.40183953,139.8,139.76,16.308864]
[1764697690684,13.06583392,139.79,139.74,13.04583392]
[1764697690897,13.06583392,139.79,139.73,15.96638836]
[1764697690898,7.15461114,139.77,139.73,8.80994492]
[1764697691066,7.15461114,139.77,139.73,32.2754564]
[1764697691260,7.15461114,139.77,139.73,16.6465924]
[1764697691482,7.15461114,139.77,139.73,45.32129032]
[1764697692079,7.8542759,139.78,139.75,12.36583392]
[1764697692279,7.1542759,139.78,139.76,12.36583392]
[1764697692477,7.1542759,139.78,139.75,12.36583392]
[1764697692985,7.1542759,139.78,139.75,13.07583392]
[1764697693295,7.1542759,139.78,139.75,12.36583392]
[1764697694596,7.1542759,139.78,139.74,19.52161663]
[1764697694767,7.1542759,139.78,139.75,12.36583392]
[1764697695087,15.11380676,139.79,139.75,20.23131101]
[1764697695387,15.11380676,139.79,139.76,12.36583392]
[1764697695587,7.96,139.79,139.76,13.07583392]
[1764697696386,7.96,139.79,139.76,9.51994492]
[1764697696690,15.1136712,139.79,139.76,9.51994492]
[1764697698493,13.01583392,139.78,139.74,8.80994492]
[1764697698697,13.01583392,139.78,139.74,0.71]
[1764697698923,12.36583392,139.76,139.71,12.36583392]
[1764697699073,7.96,139.76,139.72,8.80994492]
[1764697699270,8.61,139.76,139.72,8.80994492]
[1764697699688,8.61,139.76,139.72,9.51994492]
[1764697699976,15.76558894,139.76,139.72,9.51994492]
[1764697700387,15.76558894,139.76,139.72,21.88577884]
[1764697701300,15.11558894,139.76,139.72,21.17577884]
[1764697701597,15.11558894,139.76,139.73,0.71]
[1764697702078,7.96,139.76,139.73,20.23226089]
[1764697702476,7.15480529,139.77,139.74,21.88577884]
[1764697703602,7.15480529,139.77,139.74,8.80994492]
[1764697703981,7.15480529,139.77,139.74,9.51994492]
[1764697704600,7.15480529,139.77,139.74,21.88577884]
[1764697705003,7.15480529,139.77,139.74,29.04187071]
[1764697706087,8.61,139.78,139.74,29.04187071]
[1764697706088,15.76434216,139.78,139.74,29.04187071]
[1764697706305,15.11434216,139.78,139.74,29.04187071]
[1764697706506,15.11434216,139.78,139.75,13.07583392]
[1764697706697,15.11434216,139.78,139.75,0.71]
[1764697707608,7.96,139.78,139.75,0.71]
[1764697708216,15.11412991,139.78,139.75,0.71]
[1764697709019,15.76412991,139.78,139.74,28.3319175]
[1764697709215,15.76412991,139.78,139.74,29.0419175]
[1764697709417,15.76412991,139.78,139.74,21.88577884]
[1764697709716,15.76412991,139.78,139.74,29.0418375]
[1764697710097,0.65,139.77,139.74,16.308864]
[1764697710414,7.15512306,139.76,139.74,16.308864]
[1764697711018,7.15512306,139.76,139.74,16.228864]
[1764697711214,7.15512306,139.76,139.72,29.04284243]
[1764697711415,19.52095698,139.76,139.72,8.80994492]
[1764697711621,7.96,139.75,139.72,8.80994492]
[1764697711912,20.97583392,139.75,139.71,0.71]
[1764697712316,7.15614713,139.74,139.71,0.71]
[1764697713527,0.7,139.73,139.68,0.72]
[1764697713704,7.96,139.72,139.69,8.80994492]
[1764697714213,7.96,139.72,139.69,9.52994492]
[1764697714410,15.11728794,139.72,139.69,9.52994492]
[1764697718216,15.11728794,139.72,139.7,0.72]
[1764697718593,15.11728794,139.72,139.69,9.52994492]
[1764697718798,0.7,139.71,139.69,8.80994492]
[1764697719001,15.81728794,139.72,139.69,8.80994492]
[1764697719419,12.36583392,139.7,139.67,8.80994492]
[1764697719603,13.06583392,139.71,139.67,9.52994492]
[1764697720216,7.96,139.72,139.69,8.80994492]
[1764697720419,7.96,139.72,139.69,21.17577884]
[1764697720617,7.96,139.72,139.69,21.89577884]
[1764697721119,7.96,139.72,139.7,13.08583392]
[1764697721497,7.96,139.72,139.7,0.72]
[1764697721993,7.15674169,139.73,139.7,0.72]
[1764697722596,7.15674169,139.73,139.7,13.08583392]
[1764697722795,7.96,139.74,139.71,0.68]
[1764697723015,7.96,139.74,139.71,20.20351275]
[1764697723391,7.96,139.74,139.72,0.68]
[1764697723602,15.1161928,139.74,139.72,0.68]
[1764697723800,15.1161928,139.74,139.71,12.36583392]
[1764697724004,15.1161928,139.74,139.71,13.04583392]
[1764697724204,15.1161928,139.74,139.72,0.68]
[1764697724905,15.1161928,139.74,139.71,14.3339531]
[1764697725223,7.96,139.74,139.72,0.68]
[1764697725399,7.96,139.74,139.71,21.49135183]
[1764697725599,15.11615166,139.74,139.71,9.48994492]
[1764697726000,0.67,139.73,139.69,16.308864]
[1764697726200,5.51400818,139.73,139.69,16.308864]
[1764697726427,5.51400818,139.73,139.69,16.988864]
[1764697726722,0.67,139.73,139.69,16.988864]
[1764697726919,7.82714503,139.73,139.69,16.988864]
[1764697727120,12.67115321,139.73,139.69,16.988864]
[1764697728528,5.51400818,139.72,139.67,0.68]
[1764697728835,12.80400818,139.71,139.68,16.308864]
[1764697729012,7.15819613,139.7,139.67,8.80994492]
[1764697729214,12.67220431,139.7,139.67,8.80994492]
[1764697729414,7.82819613,139.7,139.67,9.48994492]
[1764697729729,7.82819613,139.7,139.67,25.11880892]
[1764697730130,7.15819613,139.7,139.67,25.79880892]
[1764697730310,7.82819613,139.7,139.67,25.11880892]
[1764697730711,12.00220431,139.7,139.67,25.79880892]
[1764697730910,12.00220431,139.7,139.67,25.11880892]
[1764697731529,12.67220431,139.7,139.67,16.308864]
[1764697731944,0.67,139.69,139.67,16.308864]
[1764697732323,12.00220431,139.7,139.67,16.308864]
[1764697732513,12.67220431,139.7,139.67,16.308864]
[1764697734936,4.84400818,139.69,139.67,16.308864]
[1764697735126,5.51400818,139.69,139.67,16.308864]
[1764697736035,13.47400818,139.68,139.66,0.1]
[1764697736226,4.84400818,139.67,139.66,0.1]
[1764697736742,5.51400818,139.67,139.66,0.1]
[1764697737413,8.38128892,139.67,139.61,0.1]
[1764697737614,4.84400818,139.62,139.61,0.1]
[1764697737831,12.80400818,139.62,139.61,0.1]
[1764697738040,20.63630584,139.62,139.61,0.1]
[1764697740539,36.94516984,139.62,139.6,0.1]
[1764697740742,0.67,139.61,139.6,0.1]
[1764697740917,13.49400818,139.61,139.6,0.1]
[1764697741248,8.65,139.61,139.6,0.1]
[1764697741417,13.49400818,139.61,139.6,0.1]
[1764697741749,16.308864,139.58,139.55,0.1]
[1764697741916,4.84400818,139.56,139.55,0.1]
[1764697742113,12.00938507,139.56,139.55,0.1]
[1764697742312,10.27441167,139.56,139.55,0.1]
[1764697742716,7.16537689,139.56,139.55,0.1]
[1764697742918,3.77903478,139.59,139.55,0.1]
[1764697743119,7.98,139.58,139.55,0.78]
[1764697744038,7.98,139.58,139.55,7.94570156]
[1764697744241,7.98,139.59,139.55,11.05473634]
[1764697744546,7.98,139.59,139.56,0.68]
[1764697746246,18.25326134,139.59,139.55,0.1]
[1764697746461,7.98,139.58,139.55,0.78]
[1764697746945,7.98,139.58,139.56,8.80994492]
[1764697747249,7.98,139.59,139.56,11.9189797]
[1764697747452,7.98,139.59,139.57,0.68]
[1764697748444,7.98,139.59,139.57,3.78903478]
[1764697748747,7.98,139.59,139.57,10.95389132]
[1764697749050,7.98,139.59,139.58,0.68]
[1764697749543,36.1624641,139.59,139.55,0.78]
[1764697749748,36.8324641,139.59,139.55,0.78]
[1764697749947,3.10903478,139.56,139.55,0.1]
[1764697750149,7.98,139.56,139.55,0.1]
[1764697750349,15.14537689,139.56,139.55,0.1]
[1764697750545,18.92441167,139.56,139.55,0.1]
[1764697751051,18.25441167,139.56,139.55,0.1]
[1764697751231,7.98,139.56,139.55,0.1]
[1764697751432,3.10903478,139.58,139.55,0.78]
[1764697751629,7.98,139.57,139.55,0.78]
[1764697751832,18.25404808,139.57,139.55,0.1]
[1764697752051,15.8550133,139.57,139.55,0.1]
[1764697752225,0.71,139.56,139.55,0.1]
[1764697752426,10.98441167,139.56,139.55,0.1]
[1764697754253,18.96441167,139.56,139.55,0.1]
[1764697758435,15.14537689,139.56,139.55,0.1]
[1764697758636,7.98,139.56,139.55,0.78]
[1764697758857,15.14537689,139.56,139.55,0.1]
[1764697759040,10.27441167,139.56,139.55,0.1]
[1764697759361,18.25441167,139.56,139.55,0.1]
[1764697759872,15.14537689,139.56,139.55,0.1]
[1764697760032,10.27402022,139.57,139.55,0.78]
[1764697760358,7.98,139.56,139.55,0.78]
[1764697761359,15.14537689,139.56,139.55,0.78]
[1764697761732,7.98,139.56,139.55,0.78]
[1764697764543,7.98,139.58,139.56,8.80994492]
[1764697764744,7.98,139.58,139.55,3.88903478]
[1764697764941,10.27184546,139.61,139.56,9.48994492]
[1764697765263,18.25184546,139.61,139.56,12.5989797]
[1764697765443,36.15887217,139.61,139.57,0.68]
[1764697766273,7.98,139.61,139.58,8.80994492]
[1764697766490,15.1428376,139.61,139.58,8.80994492]
[1764697766644,15.1428376,139.61,139.58,9.48994492]
[1764697766840,18.25187238,139.61,139.58,0.68]
[1764697767075,3.10903478,139.6,139.56,0.68]
[1764697767278,7.16383695,139.59,139.56,0.68]
[1764697767484,7.98,139.58,139.56,0.68]
[1764697767769,11.08903478,139.58,139.55,0.1]
[1764697768176,11.79903478,139.58,139.55,0.1]
[1764697768377,3.10903478,139.57,139.55,0.1]
[1764697768875,3.81903478,139.56,139.55,0.1]
[1764697769375,10.98441167,139.56,139.55,0.1]
[1764697769868,7.87537689,139.56,139.55,0.1]
[1764697771365,10.98441167,139.56,139.55,0.1]
[1764697771944,10.27441167,139.56,139.55,0.1]
[1764697772150,7.16537689,139.56,139.55,0.1]
[1764697772345,7.98,139.56,139.55,0.78]
[1764697773672,15.14404036,139.59,139.55,11.05492514]
[1764697774083,15.14404036,139.59,139.56,0.68]
[1764697774666,22.4270087,139.59,139.56,0.68]
[1764697775891,15.14404036,139.59,139.56,0.68]
[1764697776068,22.4270087,139.59,139.56,0.68]
[1764697777382,15.14404036,139.59,139.56,0.68]
[1764697778370,22.4270087,139.59,139.56,0.68]
[1764697778569,7.28296834,139.58,139.55,0.79]
[1764697779200,7.28296834,139.57,139.55,0.1]
[1764697779375,7.98,139.56,139.55,0.1]
[1764697780088,15.14537689,139.56,139.55,0.1]
[1764697781186,7.98,139.56,139.55,0.1]
[1764697781389,15.14537689,139.56,139.55,0.1]
[1764697781566,23.09834523,139.56,139.55,0.1]
[1764697782387,15.81537689,139.56,139.55,0.1]
[1764697782595,22.42834523,139.56,139.55,0.1]
[1764697782891,7.98,139.56,139.55,0.78]
[1764697783292,7.98,139.56,139.55,0.1]
[1764697784393,15.14537689,139.56,139.55,0.1]
[1764697784581,22.42834523,139.56,139.55,0.1]
[1764697784993,15.14537689,139.56,139.55,0.1]
[1764697785293,7.98,139.56,139.55,0.1]
[1764697785498,7.98,139.56,139.55,0.78]
[1764697785791,7.98,139.57,139.55,0.78]
[1764697786494,7.16360908,139.6,139.56,16.09291326]
[1764697786797,7.98,139.59,139.56,16.09291326]
[1764697786967,7.98,139.59,139.57,0.68]
[1764697787968,15.14286736,139.61,139.57,7.96296834]
[1764697788189,22.4258357,139.61,139.57,0.68]
[1764697788387,22.4258357,139.61,139.58,0.68]
[1764697788591,15.26296834,139.61,139.58,0.68]
[1764697788888,33.04992477,139.61,139.55,0.1]
[1764697789208,15.26296834,139.6,139.56,9.48994492]
[1764697789500,7.98,139.6,139.56,9.48994492]
[1764697789701,15.26296834,139.6,139.57,0.68]
[1764697790502,22.42634771,139.6,139.57,0.68]
[1764697791874,7.28296834,139.59,139.56,8.80994492]
[1764697792072,7.28296834,139.59,139.57,0.68]
[1764697792277,7.98,139.59,139.57,0.68]
[1764697793501,7.1628635,139.61,139.57,7.84482531]
[1764697793673,7.98,139.6,139.58,8.80994492]
[1764697793879,7.98,139.6,139.58,9.48994492]
[1764697794186,7.28296834,139.59,139.55,9.58994492]
[1764697794501,8.67,139.6,139.56,0.68]
[1764697794502,7.28296834,139.58,139.56,0.68]
[1764697795205,14.44743146,139.58,139.56,0.68]
[1764697795676,15.95296834,139.57,139.55,0.1]
[1764697795880,7.28296834,139.56,139.55,0.1]
[1764697796091,15.26296834,139.57,139.55,0.1]
[1764697796413,11.08865394,139.57,139.55,0.78]
[1764697796583,7.98,139.57,139.55,3.88865394]
[1764697796908,7.98,139.57,139.55,7.94584841]
[1764697797112,7.98,139.57,139.56,0.68]
[1764697798904,7.16391224,139.59,139.56,0.68]
[1764697799076,7.98,139.58,139.56,0.68]
[1764697800202,7.98,139.58,139.57,8.80994492]
[1764697800407,7.98,139.61,139.57,11.91859886]
[1764697800581,7.98,139.61,139.58,3.78865394]
[1764697801103,7.98,139.61,139.59,0.68]
[1764697802500,7.16171514,139.64,139.6,8.80994492]
[1764697802685,5.54347309,139.66,139.6,13.66341801]
[1764697802884,5.54347309,139.66,139.61,0.68]
[1764697802885,12.83347309,139.65,139.61,0.68]
[1764697803087,7.98,139.65,139.62,12.01577075]
[1764697803291,7.1594447,139.68,139.63,13.66341801]
[1764697803488,12.83347309,139.68,139.64,0.68]
[1764697803688,4.85347309,139.67,139.64,0.68]
[1764697804109,12.83347309,139.68,139.64,0.68]
[1764697804297,7.98,139.68,139.64,5.53347309]
[1764697804504,7.98,139.68,139.65,13.66341801]
[1764697804683,7.1590074,139.69,139.65,9.48994492]
[1764697805018,7.98,139.68,139.66,0.68]
[1764697806308,7.96,139.7,139.67,8.80994492]
[1764697806608,7.96,139.7,139.67,9.48994492]
[1764697807211,12.81347309,139.7,139.67,8.80994492]
[1764697807514,4.85347309,139.69,139.66,0.68]
[1764697809417,12.01228869,139.69,139.66,0.68]
[1764697809609,7.1588156,139.69,139.66,0.68]
[1764697809918,7.96,139.7,139.67,13.66341801]
[1764697810401,7.96,139.7,139.68,0.68]
[1764697812318,15.1179218,139.71,139.68,0.68]
[1764697812817,4.85347309,139.7,139.66,4.85347309]
[1764697813010,4.85347309,139.69,139.65,9.52994492]
[1764697813211,7.96,139.68,139.65,9.52994492]
[1764697813408,7.96,139.68,139.66,0.72]
[1764697813712,7.96,139.68,139.66,5.57347309]
[1764697814086,7.96,139.68,139.67,0.72]
[1764697815905,19.97201806,139.7,139.67,0.72]
[1764697816402,12.81347309,139.7,139.67,0.72]
[1764697816792,19.97198908,139.7,139.67,0.72]
[1764697816994,0.2,139.73,139.67,0.72]
[1764697817193,7.35669429,139.73,139.7,8.80994492]
[1764697817395,5.75347309,139.73,139.7,8.80994492]
[1764697817999,0.2,139.73,139.71,0.72]
[1764697818415,0.2,139.73,139.72,8.80994492]
[1764697818622,0.2,139.73,139.72,13.66341801]
[1764697818918,0.2,139.73,139.72,9.52994492]
[1764697820522,0.2,139.73,139.72,21.54058949]
[1764697823909,0.2,139.73,139.72,16.6871164]
[1764697824109,0.2,139.73,139.72,21.54058949]
[1764697832228,0.2,139.73,139.72,8.80994492]
[1764697833029,0.2,139.73,139.72,21.54058949]
[1764697834329,0.2,139.74,139.72,21.54058949]
[1764697834534,0.2,139.81,139.72,21.54058949]
[1764697834535,0.2,139.81,139.74,8.80994492]
[1764697834706,0.2,139.81,139.79,4.85347309]
[1764697834901,0.2,139.81,139.8,9.52994492]
[1764697835108,0.2,139.81,139.8,14.38341801]
[1764697836018,0.2,139.81,139.8,9.52994492]
[1764697836329,0.2,139.81,139.8,21.53649383]
[1764697840128,0.2,139.81,139.8,16.68302074]
[1764697840323,0.2,139.81,139.8,21.53649383]
[1764697840533,0.2,139.81,139.8,8.80994492]
[1764697840732,0.2,139.81,139.8,21.53649383]
[1764697843113,0.2,139.81,139.8,8.80994492]
[1764697843531,0.2,139.81,139.79,8.80994492]
[1764697844135,7.35264626,139.81,139.77,13.66341801]
[1764697844335,0.2,139.81,139.79,8.80994492]
[1764697844925,8.01260534,139.81,139.77,21.16233709]
[1764697845126,8.01260534,139.81,139.78,8.80994492]
[1764697845319,0.66,139.8,139.78,8.80994492]
[1764697845712,0.66,139.8,139.77,8.80994492]